bitfinex/quotes_SOLUSD_20241102
["timestamp","ask_amount","ask_price","bid_price","bid_amount"]
[1730579833737,4.49373772,166.16,166.11,11.13323531]
[1730579833933,4.49373772,166.15,166.11,11.13323531]
[1730579834162,4.49373772,166.14,166.11,11.13323531]
[1730579834467,34.91011931,166.17,166.11,11.13323531]
[1730579834650,4.49393865,166.16,166.11,11.13323531]
[1730579834839,4.49393865,166.15,166.11,11.13323531]
[1730579835038,4.49393865,166.14,166.11,11.13323531]
[1730579835235,34.91011931,166.17,166.11,11.13323531]
[1730579835559,4.49398755,166.16,166.11,11.13323531]
[1730579835750,4.49398755,166.15,166.12,11.13323531]
[1730579835942,4.49398755,166.14,166.12,11.13323531]
[1730579836145,23.776884,166.17,166.12,11.13323531]
[1730579836337,4.49410227,166.16,166.12,11.13323531]
[1730579836541,4.49410227,166.15,166.12,11.13323531]
[1730579836837,4.49410227,166.14,166.12,11.13323531]
[1730579837037,23.776884,166.17,166.12,11.13323531]
[1730579837238,4.49431347,166.16,166.12,11.13323531]
[1730579837450,4.49431347,166.15,166.12,11.13323531]
[1730579837652,4.49431347,166.14,166.12,11.13323531]
[1730579837966,23.776884,166.17,166.13,11.13323531]
[1730579838159,4.49441147,166.16,166.13,11.13323531]
[1730579838372,4.49441147,166.15,166.13,11.13323531]
[1730579838561,23.776884,166.19,166.14,11.13323531]
[1730579838767,4.49411418,166.18,166.15,11.13323531]
[1730579838941,23.776884,166.19,166.15,11.13323531]
[1730579839140,23.776884,166.2,166.16,11.13323531]
[1730579839343,4.49390179,166.18,166.16,11.13323531]
[1730579839569,4.49390179,166.17,166.16,11.13323531]
[1730579840460,11.13323531,166.22,166.16,11.13323531]
[1730579840645,4.49312031,166.21,166.16,11.13323531]
[1730579840838,4.49312031,166.2,166.16,11.13323531]
[1730579841040,4.49312031,166.19,166.16,11.13323531]
[1730579841249,4.49312031,166.18,166.14,16.1975]
[1730579841451,15.0974,166.24,166.17,11.13323531]
[1730579841452,11.13323531,166.24,166.17,11.13323531]
[1730579841661,4.49244392,166.23,166.19,11.13323531]
[1730579841860,4.49244392,166.22,166.19,11.13323531]
[1730579842070,4.49244392,166.21,166.19,11.13323531]
[1730579842264,4.49244392,166.2,166.19,11.13323531]
[1730579849464,4.49244392,166.2,166.18,11.13323531]
[1730579849665,23.776884,166.23,166.18,11.13323531]
[1730579849970,23.776884,166.23,166.14,16.1975]
[1730579849971,11.13323531,166.2,166.14,27.33073531]
[1730579850153,4.4885548,166.19,166.14,16.1975]
[1730579850346,15.62179011,166.18,166.13,11.13323531]
[1730579850569,11.13323531,166.18,166.13,11.13323531]
[1730579850897,4.48923413,166.17,166.13,11.13323531]
[1730579851074,11.13323531,166.18,166.13,11.13323531]
[1730579851274,4.48927149,166.17,166.13,11.13323531]
[1730579851478,11.13323531,166.18,166.13,11.13323531]
[1730579851654,4.48993125,166.17,166.13,11.13323531]
[1730579851978,11.13323531,166.19,166.14,11.13323531]
[1730579852156,23.776884,166.18,166.14,11.13323531]
[1730579852477,4.48993583,166.17,166.14,11.13323531]
[1730579852670,23.776884,166.18,166.14,11.13323531]
[1730579852862,4.49058391,166.17,166.14,11.13323531]
[1730579853065,23.776884,166.18,166.14,11.13323531]
[1730579853375,4.49104746,166.17,166.14,11.13323531]
[1730579853682,23.776884,166.18,166.14,11.13323531]
[1730579853870,4.49123254,166.17,166.14,11.13323531]
[1730579854052,4.49123254,166.16,166.14,11.13323531]
[1730579854367,23.776884,166.18,166.14,11.13323531]
[1730579854550,4.49195247,166.17,166.14,11.13323531]
[1730579854752,4.49195247,166.16,166.14,11.13323531]
[1730579855073,23.776884,166.18,166.14,11.13323531]
[1730579855277,4.49195974,166.17,166.14,11.13323531]
[1730579855457,4.49195974,166.16,166.14,11.13323531]
[1730579855656,23.776884,166.18,166.14,11.13323531]
[1730579855858,4.49273251,166.17,166.14,11.13323531]
[1730579856056,4.49273251,166.16,166.14,11.13323531]
[1730579856258,23.776884,166.18,166.14,11.13323531]
[1730579856557,4.49356895,166.17,166.14,11.13323531]
[1730579856766,4.49356895,166.16,166.14,11.13323531]
[1730579856970,23.776884,166.18,166.14,11.13323531]
[1730579857164,4.49356832,166.17,166.14,11.13323531]
[1730579857474,4.49356832,166.16,166.11,20.0]
[1730579857663,17.27203531,166.21,166.15,11.13323531]
[1730579857862,4.49411945,166.2,166.16,11.13323531]
[1730579858064,4.49411945,166.19,166.16,11.13323531]
[1730579858272,4.49411945,166.18,166.16,11.13323531]
[1730579858468,4.49411945,166.17,166.16,11.13323531]
[1730579860470,23.776884,166.22,166.16,11.13323531]
[1730579860676,23.776884,166.22,166.17,11.13323531]
[1730579860886,11.13323531,166.22,166.17,11.13323531]
[1730579863056,11.13323531,166.22,166.16,11.13323531]
[1730579869170,11.13323531,166.22,166.17,11.13323531]
[1730579869487,23.776884,166.22,166.17,11.13323531]
[1730579879495,23.776884,166.2,166.15,11.13323531]
[1730579880087,34.91011931,166.2,166.14,11.13323531]
[1730579880276,11.13323531,166.19,166.14,11.13323531]
[1730579880478,11.13323531,166.18,166.13,11.13323531]
[1730579881092,11.13323531,166.19,166.13,11.13323531]
[1730579882494,11.13323531,166.19,166.14,11.13323531]
[1730579883576,34.91011931,166.2,166.14,11.13323531]
[1730579885784,23.776884,166.17,166.13,11.13323531]
[1730579886887,23.776884,166.18,166.13,11.13323531]
[1730579888383,23.776884,166.18,166.1,16.1975]
[1730579888575,23.776884,166.18,166.14,11.13323531]
[1730579889483,11.13323531,166.22,166.16,11.13323531]
[1730579889884,11.13323531,166.21,166.16,11.13323531]
[1730579890487,11.13323531,166.21,166.15,11.13323531]
[1730579890689,34.91011931,166.2,166.15,11.13323531]
[1730579890910,34.91011931,166.2,166.14,11.13323531]
[1730579891081,11.13323531,166.19,166.14,11.13323531]
[1730579891393,34.91011931,166.2,166.14,11.13323531]
[1730579891595,34.91011931,166.2,166.1,16.1975]
[1730579891596,34.91011931,166.2,166.15,11.13323531]
[1730579891991,23.776884,166.2,166.15,11.13323531]
[1730579893889,23.776884,166.21,166.16,11.13323531]
[1730579896204,11.13323531,166.24,166.18,11.13323531]
[1730579896505,11.13323531,166.26,166.21,11.13323531]
[1730579896683,2.29431164,166.27,166.16,59.70194124]
[1730579896684,11.13323531,166.27,166.22,11.13323531]
[1730579896883,11.13323531,166.28,166.22,11.13323531]
[1730579897501,11.13323531,166.27,166.22,11.13323531]
[1730579898099,23.776884,166.26,166.22,11.13323531]
[1730579900815,34.91011931,166.26,166.21,11.13323531]
[1730579900997,34.91011931,166.26,166.21,8.63323531]
[1730579904598,23.776884,166.26,166.22,11.13323531]
[1730579905409,23.776884,166.29,166.24,11.13323531]
[1730579905605,34.91011931,166.29,166.24,11.13323531]
[1730579905812,11.13323531,166.28,166.23,11.13323531]
[1730579910805,34.91011931,166.29,166.23,11.13323531]
[1730579911121,23.776884,166.29,166.24,11.13323531]
[1730579911906,23.776884,166.29,166.25,11.13323531]
[1730579912520,23.776884,166.3,166.25,11.13323531]
[1730579912820,23.776884,166.3,166.26,11.13323531]
[1730579913013,23.776884,166.31,166.27,11.13323531]
[1730579913518,11.13323531,166.32,166.27,11.13323531]
[1730579914211,11.13323531,166.31,166.26,11.13323531]
[1730579915522,21.3369,166.34,166.26,11.13323531]
[1730579915523,11.13323531,166.32,166.26,11.13323531]
[1730579915702,23.776884,166.31,166.26,11.13323531]
[1730579916823,23.776884,166.31,166.27,11.13323531]
[1730579917321,11.13323531,166.32,166.27,11.13323531]
[1730579917527,23.776884,166.32,166.27,11.13323531]
[1730579918026,23.776884,166.32,166.28,11.13323531]
[1730579918928,23.776884,166.33,166.28,11.13323531]
[1730579919224,34.91011931,166.33,166.28,11.13323531]
[1730579920004,11.13323531,166.3,166.24,11.13323531]
[1730579920209,23.776884,166.33,166.25,11.13323531]
[1730579920210,11.13323531,166.31,166.25,11.13323531]
[1730579920423,11.13323531,166.31,166.23,20.0]
[1730579920424,11.13323531,166.31,166.26,11.13323531]
[1730579920622,23.776884,166.31,166.27,11.13323531]
[1730579920803,34.91011931,166.31,166.26,11.13323531]
[1730579922224,11.13323531,166.32,166.27,11.13323531]
[1730579924009,11.13323531,166.33,166.28,11.13323531]
[1730579924209,23.776884,166.32,166.28,11.13323531]
[1730579924414,23.776884,166.32,166.24,44.53294124]
[1730579924415,11.13323531,166.34,166.29,11.13323531]
[1730579924626,4.62592171,166.37,166.31,11.13323531]
[1730579924627,11.13323531,166.36,166.31,11.13323531]
[1730579926321,23.776884,166.35,166.31,11.13323531]
[1730579926523,23.776884,166.35,166.32,6.0125]
[1730579928812,23.776884,166.36,166.32,6.0125]
[1730579929916,23.776884,166.36,166.32,17.14573531]
[1730579930529,23.776884,166.36,166.32,11.13323531]
[1730579931532,23.0583,166.42,166.35,11.13323531]
[1730579931712,34.19153531,166.42,166.37,11.13323531]
[1730579932024,11.13323531,166.42,166.36,11.13323531]
[1730579932627,11.13323531,166.42,166.37,6.0106]
[1730579933224,23.776884,166.41,166.37,6.0106]
[1730579933733,11.13323531,166.42,166.37,17.14383531]
[1730579934031,11.13323531,166.43,166.38,11.13323531]
[1730579934913,11.13323531,166.41,166.36,11.13323531]
[1730579935914,11.13323531,166.41,166.37,6.0106]
[1730579936116,34.91011931,166.42,166.37,6.0106]
[1730579937137,23.776884,166.42,166.37,11.13323531]
[1730579938439,23.776884,166.42,166.39,6.0099]
[1730579938637,23.776884,166.43,166.39,17.14313531]
[1730579938818,11.13323531,166.44,166.39,17.14313531]
[1730579939928,11.13323531,166.44,166.39,11.13323531]
[1730579940428,11.13323531,166.45,166.4,11.13323531]
[1730579940628,23.776884,166.45,166.41,11.13323531]
[1730579940836,34.91011931,166.45,166.4,11.13323531]
[1730579942245,34.91011931,166.45,166.41,6.0092]
[1730579943526,34.91011931,166.45,166.39,11.13323531]
[1730579944118,11.13323531,166.44,166.39,11.13323531]
[1730579944944,0.6078943,166.46,166.43,11.13323531]
[1730579945150,0.6078943,166.46,166.42,11.13323531]
[1730579945351,11.74112961,166.46,166.41,17.14243531]
[1730579946147,11.74112961,166.46,166.41,11.13323531]
[1730579946348,11.13323531,166.43,166.38,11.13323531]
[1730579946722,11.13323531,166.44,166.39,11.13323531]
[1730579947343,23.776884,166.45,166.37,22.0904]
[1730579947344,34.91011931,166.45,166.4,11.13323531]
[1730579948426,34.91011931,166.45,166.41,6.0092]
[1730579950345,34.91011931,166.45,166.39,11.13323531]
[1730579951341,11.13323531,166.44,166.39,11.13323531]
[1730579952134,23.776884,166.45,166.38,6.0103]
[1730579952135,11.13323531,166.42,166.38,6.0103]
[1730579953545,23.776884,166.45,166.38,6.0103]
[1730579953546,11.13323531,166.4,166.38,6.0103]
[1730579953941,11.13323531,166.4,166.35,11.13323531]
[1730579954139,11.13323531,166.4,166.36,20.0]
[1730579959145,11.13323531,166.4,166.36,11.13323531]
[1730579960243,11.13323531,166.41,166.36,11.13323531]
[1730579961252,23.776884,166.41,166.37,11.13323531]
[1730579962357,11.13323531,166.42,166.38,6.0103]
[1730579962559,11.13323531,166.43,166.38,17.14353531]
[1730579962755,23.776884,166.42,166.38,17.14353531]
[1730579965461,23.776884,166.42,166.37,11.13323531]
[1730579967145,23.776884,166.42,166.38,6.0103]
[1730579967768,23.776884,166.38,166.32,11.13323531]
[1730579967949,11.13323531,166.37,166.32,11.13323531]
[1730579968151,23.776884,166.38,166.3,6.0132]
[1730579968152,34.91011931,166.38,166.33,11.13323531]
[1730579968761,34.91011931,166.38,166.34,6.0117]
[1730579969949,23.776884,166.38,166.34,11.13323531]
[1730579971461,23.776884,166.38,166.35,11.13323531]
[1730579971640,23.776884,166.39,166.35,11.13323531]
[1730579971960,11.13323531,166.41,166.36,11.13323531]
[1730579971961,23.776884,166.4,166.36,11.13323531]
[1730579973363,23.776884,166.4,166.37,6.0106]
[1730579973675,34.91011931,166.4,166.37,6.0106]
[1730579974545,23.776884,166.4,166.35,11.13323531]
[1730579976779,34.91011931,166.4,166.35,11.13323531]
[1730579980368,23.776884,166.4,166.35,11.13323531]
[1730579981454,23.776884,166.4,166.36,6.011]
[1730579985373,11.13323531,166.39,166.34,11.13323531]
[1730579988060,23.776884,166.38,166.34,11.13323531]
[1730579992964,23.776884,166.39,166.36,11.13323531]
[1730579993153,23.776884,166.4,166.36,11.13323531]
[1730579993972,23.776884,166.4,166.37,6.0106]
[1730579997579,34.91011931,166.4,166.37,6.0106]
[1730579999065,34.91011931,166.4,166.35,11.13323531]
[1730580000356,34.91011931,166.4,166.36,6.011]
[1730580001484,34.91011931,166.4,166.37,15.0267]
[1730580003078,23.776884,166.4,166.37,15.0267]
[1730580004159,23.776884,166.4,166.36,11.13323531]
[1730580004358,23.776884,166.42,166.37,11.13323531]
[1730580004986,11.13323531,166.42,166.37,11.13323531]
[1730580005367,23.776884,166.41,166.37,11.13323531]
[1730580005673,23.776884,166.41,166.38,6.0103]
[1730580006582,23.776884,166.41,166.38,21.0361]
[1730580009072,11.13323531,166.45,166.4,11.13323531]
[1730580009276,11.74112961,166.46,166.41,11.13323531]
[1730580009893,0.6078943,166.46,166.43,11.13323531]
[1730580010288,0.6078943,166.46,166.42,11.13323531]
[1730580010588,0.6078943,166.46,166.42,27.24603531]
[1730580010774,0.6078943,166.46,166.43,11.13323531]
[1730580010975,0.6078943,166.46,166.44,6.0081]
[1730580011182,0.6078943,166.46,166.45,11.13323531]
[1730580012989,0.6078943,166.46,166.45,17.14103531]
[1730580015375,0.6078943,166.46,166.45,37.14103531]
[1730580015885,9.43e-05,166.46,166.45,37.14103531]
[1730580024373,9.43e-05,166.46,166.45,81.67397655]
[1730580026977,9.43e-05,166.46,166.45,37.14103531]
[1730580030593,11.45442959,166.57,166.46,20.0]
[1730580030803,11.45442959,166.57,166.53,11.13323531]
[1730580031192,22.5876649,166.57,166.52,11.13323531]
[1730580032288,22.5876649,166.57,166.53,6.0049]
[1730580032680,23.776884,166.56,166.53,6.0049]
[1730580035382,22.5876649,166.57,166.53,6.0049]
[1730580039403,11.13323531,166.54,166.49,11.13323531]
[1730580039616,11.13323531,166.53,166.49,11.13323531]
[1730580040403,11.13323531,166.54,166.5,6.006]
[1730580044716,34.91011931,166.56,166.52,11.13323531]
[1730580045494,22.5876649,166.57,166.52,11.13323531]
[1730580045901,11.45442959,166.57,166.53,11.13323531]
[1730580046085,11.45442959,166.57,166.54,11.13323531]
[1730580046310,11.45442959,166.57,166.55,17.13743531]
[1730580047314,11.45442959,166.57,166.55,6.0042]
[1730580047617,11.45442959,166.57,166.55,17.13743531]
[1730580048191,11.45442959,166.57,166.55,11.13323531]
[1730580048893,10.95442959,166.57,166.55,11.13323531]
[1730580050313,10.95442959,166.57,166.56,6.0038]
[1730580051413,10.95442959,166.57,166.56,17.13703531]
[1730580058326,10.95442959,166.57,166.56,37.13703531]
[1730580059399,10.95442959,166.57,166.56,6.0038]
[1730580059818,10.95442959,166.57,166.56,17.13703531]
[1730580062335,10.95442959,166.57,166.56,97.57777655]
[1730580064036,9.87322959,166.57,166.56,97.57777655]
[1730580066430,4.83132959,166.57,166.56,97.57777655]
[1730580071312,4.83132959,166.57,166.56,33.04483531]
[1730580071633,4.83132959,166.57,166.56,17.13703531]
[1730580072608,4.83132959,166.57,166.56,37.13703531]
[1730580072814,4.83132959,166.57,166.56,17.13703531]
[1730580073014,4.83132959,166.57,166.56,6.0038]
[1730580073440,4.83132959,166.57,166.53,11.13323531]
[1730580074126,4.83132959,166.57,166.54,11.13323531]
[1730580075014,4.83132959,166.57,166.56,11.13323531]
[1730580078114,4.83132959,166.57,166.55,11.13323531]
[1730580078814,4.83132959,166.57,166.56,11.13323531]
[1730580079949,4.83132959,166.57,166.56,17.13703531]
[1730580091719,15.9645649,166.57,166.52,11.13323531]
[1730580091919,15.9645649,166.57,166.5,11.13323531]
[1730580091920,11.13323531,166.56,166.5,11.13323531]
[1730580092127,11.13323531,166.56,166.49,6.0063]
[1730580092128,4.83132959,166.57,166.53,11.13323531]
[1730580092340,4.83132959,166.57,166.55,11.13323531]
[1730580092537,4.83132959,166.57,166.49,6.1063]
[1730580092723,4.83132959,166.57,166.5,0.1]
[1730580093143,4.83132959,166.57,166.5,20.1]
[1730580093730,4.83132959,166.57,166.56,31.13323531]
[1730580095854,4.83132959,166.57,166.56,37.13703531]
[1730580100552,4.83132959,166.57,166.56,81.66997655]
[1730580100753,1.82022959,166.57,166.56,81.66997655]
[1730580104346,1.82022959,166.57,166.56,37.13703531]
[1730580105356,1.82022959,166.57,166.56,6.0038]
[1730580107253,1.82022959,166.57,166.53,11.13323531]
[1730580109953,1.82022959,166.57,166.54,11.13323531]
[1730580112047,1.82022959,166.57,166.53,11.13323531]
[1730580112253,1.82022959,166.57,166.49,1.55503217]
[1730580112254,12.9534649,166.57,166.52,11.13323531]
[1730580115053,1.82022959,166.57,166.53,11.13323531]
[1730580116545,1.82022959,166.57,166.48,52.22907712]
[1730580116546,11.13323531,166.56,166.51,11.13323531]
[1730580121777,12.9534649,166.57,166.52,11.13323531]
[1730580127479,1.82022959,166.57,166.52,11.13323531]
[1730580130358,12.9534649,166.57,166.52,11.13323531]
[1730580131581,12.9534649,166.57,166.47,10.39932913]
[1730580131582,11.13323531,166.53,166.47,20.38934547]
[1730580131768,11.13323531,166.52,166.47,20.38934547]
[1730580132153,1.82022959,166.57,166.51,11.13323531]
[1730580132352,23.776884,166.56,166.51,11.13323531]
[1730580137177,34.91011931,166.56,166.51,11.13323531]
[1730580137483,34.91011931,166.56,166.5,11.13323531]
[1730580138484,34.91011931,166.56,166.51,11.13323531]
[1730580138856,23.776884,166.56,166.51,11.13323531]
[1730580139476,34.91011931,166.56,166.51,11.13323531]
[1730580139980,23.776884,166.56,166.51,11.13323531]
[1730580140187,34.91011931,166.56,166.5,11.13323531]
[1730580140482,11.13323531,166.55,166.5,11.13323531]
[1730580142088,23.776884,166.56,166.49,11.13323531]
[1730580142089,11.13323531,166.54,166.49,11.13323531]
[1730580142567,23.776884,166.56,166.47,9.25611016]
[1730580142568,11.13323531,166.55,166.5,11.13323531]
[1730580143391,34.91011931,166.56,166.5,11.13323531]
[1730580145984,11.13323531,166.55,166.5,11.13323531]
[1730580150188,34.91011931,166.56,166.5,11.13323531]
[1730580150667,34.91011931,166.56,166.51,11.13323531]
[1730580151263,34.91011931,166.56,166.47,9.25611016]
[1730580151264,34.91011931,166.56,166.5,11.13323531]
[1730580151590,11.13323531,166.55,166.5,11.13323531]
[1730580154694,1.82022959,166.57,166.51,11.13323531]
[1730580154695,11.13323531,166.56,166.51,11.13323531]
[1730580157384,11.13323531,166.56,166.47,24.95811016]
[1730580157385,11.13323531,166.56,166.5,11.13323531]
[1730580158684,11.13323531,166.55,166.5,11.13323531]
[1730580162091,34.91011931,166.56,166.5,11.13323531]
[1730580167784,23.776884,166.56,166.51,11.13323531]
[1730580168607,1.82022959,166.57,166.53,11.13323531]
[1730580169002,1.82022959,166.57,166.54,11.13323531]
[1730580171628,1.82022959,166.57,166.56,11.13323531]
[1730580178926,1.82022959,166.57,166.54,11.13323531]
[1730580179111,1.82022959,166.57,166.53,11.13323531]
[1730580180806,1.82022959,166.57,166.49,15.7098]
[1730580181025,1.82022959,166.57,166.54,11.13323531]
[1730580182728,1.82022959,166.57,166.55,11.13323531]
[1730580182920,1.82022959,166.57,166.49,15.7098]
[1730580182921,1.82022959,166.57,166.56,11.13323531]
[1730580191038,2.959e-05,166.57,166.56,75.66617655]
[1730580201030,2.959e-05,166.57,166.56,31.13323531]
[1730580218974,2.959e-05,166.57,166.56,11.13323531]
[1730580229992,2.959e-05,166.57,166.56,75.66617655]
[1730580230184,0.6078943,166.63,166.57,20.0]
[1730580230490,0.6078943,166.63,166.62,11.13323531]
[1730580231489,9.43e-05,166.63,166.62,31.13323531]
[1730580232087,9.43e-05,166.63,166.62,11.13323531]
[1730580235075,9.43e-05,166.63,166.59,11.13323531]
[1730580235394,9.43e-05,166.63,166.6,11.13323531]
[1730580236676,9.43e-05,166.63,166.61,11.13323531]
[1730580240292,9.43e-05,166.63,166.62,11.13323531]
[1730580240592,9.43e-05,166.63,166.61,11.13323531]
[1730580240782,9.43e-05,166.63,166.62,11.13323531]
[1730580240987,9.43e-05,166.63,166.61,11.13323531]
[1730580242676,9.43e-05,166.63,166.56,44.53294124]
[1730580242881,9.43e-05,166.63,166.62,11.13323531]
[1730580247212,9.43e-05,166.63,166.62,31.13323531]
[1730580252803,22.4423,166.74,166.63,20.0]
[1730580252994,22.4423,166.74,166.7,11.13323531]
[1730580253402,33.57553531,166.74,166.7,11.13323531]
[1730580254001,33.57553531,166.74,166.69,11.13323531]
[1730580254202,30.57553531,166.74,166.69,11.13323531]
[1730580254819,23.776884,166.73,166.69,11.13323531]
[1730580255722,23.776884,166.73,166.7,11.13323531]
[1730580256230,23.776884,166.73,166.69,11.13323531]
[1730580258697,23.776884,166.73,166.7,11.13323531]
[1730580259118,23.776884,166.73,166.69,11.13323531]
[1730580259905,19.4423,166.74,166.7,11.13323531]
[1730580263903,16.1838,166.74,166.7,11.13323531]
[1730580265321,23.776884,166.75,166.71,11.13323531]
[1730580265906,23.776884,166.75,166.64,44.53294124]
[1730580265907,11.13323531,166.77,166.72,11.13323531]
[1730580266108,23.776884,166.76,166.72,11.13323531]
[1730580266306,34.91011931,166.76,166.71,11.13323531]
[1730580268429,11.13323531,166.74,166.69,11.13323531]
[1730580271011,11.13323531,166.74,166.7,11.13323531]
[1730580271515,11.13323531,166.75,166.7,11.13323531]
[1730580277637,34.91011931,166.74,166.69,11.13323531]
[1730580278752,11.13323531,166.71,166.66,11.13323531]
[1730580279325,11.13323531,166.72,166.67,11.13323531]
[1730580294350,11.13323531,166.71,166.68,5.9995]
[1730580294534,11.13323531,166.73,166.68,17.13273531]
[1730580294849,23.776884,166.72,166.68,17.13273531]
[1730580296441,23.776884,166.72,166.68,11.13323531]
[1730580298151,34.91011931,166.72,166.67,11.13323531]
[1730580298349,11.13323531,166.71,166.66,11.13323531]
[1730580300557,11.13323531,166.71,166.67,5.9998]
[1730580300762,11.13323531,166.7,166.67,5.9998]
[1730580301063,34.91011931,166.72,166.67,17.13303531]
[1730580302144,34.91011931,166.72,166.67,11.13323531]
[1730580302833,11.13323531,166.76,166.7,11.13323531]
[1730580303034,11.13323531,166.77,166.72,11.13323531]
[1730580303651,11.13323531,166.76,166.71,11.13323531]
[1730580304256,11.13323531,166.76,166.72,5.998]
[1730580305157,11.13323531,166.76,166.72,17.13123531]
[1730580306052,11.13323531,166.76,166.72,11.13323531]
[1730580308555,11.13323531,166.75,166.7,11.13323531]
[1730580311281,11.13323531,166.75,166.71,11.13323531]
[1730580311553,11.13323531,166.76,166.71,11.13323531]
[1730580312133,11.13323531,166.76,166.72,11.13323531]
[1730580312574,11.74112961,166.79,166.74,11.13323531]
[1730580313862,11.74112961,166.79,166.75,5.997]
[1730580314045,23.776884,166.78,166.75,5.997]
[1730580314241,34.91011931,166.78,166.75,5.997]
[1730580314440,34.91011931,166.76,166.75,5.997]
[1730580315773,23.776884,166.75,166.7,5.9988]
[1730580315975,11.13323531,166.74,166.7,5.9988]
[1730580316976,34.91011931,166.73,166.7,5.9988]
[1730580317151,23.776884,166.75,166.7,5.9988]
[1730580317152,11.13323531,166.72,166.7,5.9988]
[1730580318067,11.13323531,166.72,166.67,11.13323531]
[1730580318274,11.13323531,166.74,166.68,11.13323531]
[1730580318474,23.776884,166.73,166.69,11.13323531]
[1730580319053,11.13323531,166.75,166.7,11.13323531]
[1730580319259,34.91011931,166.77,166.71,11.13323531]
[1730580320363,34.91011931,166.77,166.72,5.998]
[1730580321974,11.13323531,166.78,166.73,11.13323531]
[1730580322180,23.776884,166.78,166.73,11.13323531]
[1730580322383,34.91011931,166.78,166.73,11.13323531]
[1730580322673,34.91011931,166.78,166.66,21.7552]
[1730580322674,11.13323531,166.77,166.74,5.9973]
[1730580323795,11.13323531,166.78,166.73,11.13323531]
[1730580324666,23.776884,166.78,166.75,5.997]
[1730580338984,34.91011931,166.78,166.75,5.997]
[1730580339887,34.91011931,166.78,166.73,11.13323531]
[1730580345393,23.776884,166.78,166.74,11.13323531]
[1730580349905,23.776884,166.78,166.71,15.4166]
[1730580349906,23.776884,166.78,166.73,11.13323531]
[1730580350779,23.776884,166.78,166.75,11.13323531]
[1730580350986,23.776884,166.78,166.74,11.13323531]
[1730580353615,11.74112961,166.79,166.74,11.13323531]
[1730580360190,0.6078943,166.79,166.75,11.13323531]
[1730580360491,0.6078943,166.79,166.71,15.4166]
[1730580360492,0.6078943,166.79,166.76,11.13323531]
[1730580361407,0.6078943,166.79,166.77,11.13323531]
[1730580361596,0.6078943,166.79,166.78,11.13323531]
[1730580362992,0.6078943,166.79,166.77,11.13323531]
[1730580363314,0.6078943,166.79,166.75,11.13323531]
[1730580363692,11.74112961,166.79,166.73,11.13323531]
[1730580365103,11.13323531,166.75,166.7,11.13323531]
[1730580365807,11.13323531,166.76,166.71,11.13323531]
[1730580366492,34.91011931,166.77,166.72,11.13323531]
[1730580367006,23.776884,166.77,166.73,11.13323531]
[1730580367188,23.776884,166.78,166.73,11.13323531]
[1730580368100,34.91011931,166.78,166.73,11.13323531]
[1730580369397,34.91011931,166.78,166.67,16.0279]
[1730580369398,11.13323531,166.77,166.72,11.13323531]
[1730580369600,11.13323531,166.77,166.71,11.13323531]
[1730580369804,23.776884,166.76,166.71,11.13323531]
[1730580371494,34.91011931,166.76,166.71,11.13323531]
[1730580373619,11.13323531,166.75,166.7,11.13323531]
[1730580373910,11.13323531,166.73,166.68,11.13323531]
[1730580374208,11.13323531,166.72,166.67,27.16113531]
[1730580375007,11.13323531,166.73,166.68,11.13323531]
[1730580377423,11.13323531,166.78,166.72,11.13323531]
[1730580377591,11.13323531,166.78,166.73,11.13323531]
[1730580378109,11.13323531,166.77,166.72,11.13323531]
[1730580378496,11.13323531,166.78,166.73,11.13323531]
[1730580378694,0.6078943,166.79,166.76,11.13323531]
[1730580378901,0.6078943,166.79,166.77,11.13323531]
[1730580379421,0.6078943,166.79,166.78,11.13323531]
[1730580380004,0.6078943,166.79,166.73,15.4914]
[1730580380005,0.6078943,166.79,166.77,11.13323531]
[1730580380725,0.6078943,166.79,166.76,11.13323531]
[1730580383622,0.6078943,166.79,166.75,11.13323531]
[1730580384627,0.6078943,166.79,166.74,11.13323531]
[1730580386830,0.6078943,166.79,166.76,11.13323531]
[1730580387321,0.6078943,166.79,166.77,11.13323531]
[1730580388226,0.6078943,166.79,166.76,11.13323531]
[1730580391419,0.6078943,166.79,166.73,15.4914]
[1730580391736,11.74112961,166.79,166.74,11.13323531]
[1730580392602,0.6078943,166.79,166.75,11.13323531]
[1730580397623,11.74112961,166.79,166.74,11.13323531]
[1730580398632,11.74112961,166.79,166.75,11.13323531]
[1730580398633,0.6078943,166.79,166.75,11.13323531]
[1730580399131,0.6078943,166.79,166.74,11.13323531]
[1730580403816,0.6078943,166.79,166.75,11.13323531]
[1730580407225,0.6078943,166.79,166.76,11.13323531]
[1730580408244,0.6078943,166.79,166.78,11.13323531]
[1730580416546,0.6078943,166.79,166.77,11.13323531]
[1730580418250,0.6078943,166.79,166.78,11.13323531]
[1730580419130,0.6078943,166.79,166.78,27.47883531]
[1730580420353,0.6078943,166.79,166.78,11.13323531]
[1730580428659,0.6078943,166.79,166.76,11.13323531]
[1730580428883,0.6078943,166.79,166.77,11.13323531]
[1730580429368,0.6078943,166.79,166.78,11.13323531]